{"text_format":"1","workbook":"xlsx","n_sheets":9,"sheets":["Information","Main","Energy","Waste","Outreach","Purchasing","Water","Transportation","Innovation"],"not_rendered":{"charts":0,"images":1,"macros":1,"external_links":0,"defined_names":0,"comments":0,"pivot_tables":0},"unopened":[],"bounds":{"document_bytes":16777216,"sheet_cells":100000,"rows_first":2000,"rows_last":500,"rows_between":2000,"halvings":0,"cell_chars":16384,"cell_head_chars":4096},"cells_cut":0,"cells_raw":0,"read":"whole","date_system":"1900"}

{"sheet":"Information","index":0,"n_rows":25,"n_cols":5,"rows_kept":25,"cut":false,"hidden":false,"merged":[[22,6,22,14],[24,6,24,14],[20,4,20,5],[12,6,12,14],[14,6,14,14],[16,6,16,14],[18,6,18,14],[20,6,20,14]]}
[]
[]
[]
[]
[]
[]
[]
[]
[]
[]
[]
[]
[null,null,null,null,"Champion's Name"]
[]
[null,null,null,null,"Email Adress"]
[]
[null,null,null,null,"Phone Number"]
[]
[null,null,null,null,"Office"]
[]
[null,null,null,null,"Number of Participants"]
[]
[null,null,null,null,"Division"]
[]
[null,null,null,null,"Date"]

{"sheet":"Main","index":1,"n_rows":26,"n_cols":15,"rows_kept":26,"cut":false,"hidden":false,"merged":[[14,14,14,15],[21,6,24,6],[25,13,25,15],[12,3,12,11],[13,3,13,11],[14,3,14,11],[15,3,15,11],[16,3,16,11],[17,3,17,11],[16,14,16,15],[17,14,17,15],[21,12,21,13],[12,12,12,13],[13,12,13,13],[14,12,14,13],[15,12,15,13],[11,12,11,13],[11,3,11,11],[11,14,11,15],[12,14,12,15],[13,14,13,15],[1,2,2,16],[3,2,3,16],[6,3,6,15],[10,3,10,11],[10,12,10,13],[10,14,10,15],[15,14,15,15],[17,12,17,13],[21,14,21,15],[21,9,21,11],[25,9,25,12],[16,12,16,13]]}
[]
[]
[]
[]
[]
[]
[null,null,null,"Welcome to Work Green at the University of Saskatchewan! This checklist will calculate the points your workplace has earned and the level of certification you will receive. Click on the Work Green categories on the worksheet tabs below to begin completing the checklist. Your total points will be calculated on this main page. Congratulations on your sustainability leadership!"]
[]
[]
[]
[null,null,null,"Work Green Categories",null,null,null,null,null,null,null,null,"Possible Points",null,"Points Earned"]
[null,null,null,"Energy",null,null,null,null,null,null,null,null,{"$f":"Energy!AL15","v":6},null,{"$f":"Energy!AK14","v":0}]
[null,null,null,"Waste: Reduce, Reuse, and Recycle",null,null,null,null,null,null,null,null,{"$f":"Waste!AL17","v":17},null,{"$f":"Waste!AK16","v":0}]
[null,null,null,"Outreach",null,null,null,null,null,null,null,null,{"$f":"Outreach!AL12","v":10},null,{"$f":"Outreach!AK11","v":0}]
[null,null,null,"Purchasing",null,null,null,null,null,null,null,null,{"$f":"Purchasing!AJ21","v":16},null,{"$f":"Purchasing!AI20","v":0}]
[null,null,null,"Water",null,null,null,null,null,null,null,null,{"$f":"Water!AN9","v":0},null,{"$f":"Water!AM8","v":0}]
[null,null,null,"Transportation",null,null,null,null,null,null,null,null,{"$f":"Transportation!AL10","v":2},null,{"$f":"Transportation!AK9","v":0}]
[null,null,null,"Innovation",null,null,null,null,null,null,null,null,{"$f":"Innovation!AL10","v":0},null,{"$f":"Innovation!AK9","v":0}]
[]
[]
[]
[null,null,null,null,null,null,{"$f":"(O22/M22)","v":0},null,null,"Total",null,null,{"$f":"SUM(M12:N21)","v":51},null,{"$f":"SUM(O12:P21)","v":0}]
[]
[]
[]
[null,null,null,null,null,null,null,null,null,"Level of Certification:",null,null,null,{"$f":"IF((O22/M22)*100>=81,\"Gold\", IF((O22/M22)*100>=60,\"Silver\",IF((O22/M22)*100>=40, \"Bronze\",\"WG Member\")))","v":"WG Member"}]

{"sheet":"Energy","index":2,"n_rows":112,"n_cols":38,"rows_kept":112,"cut":false,"hidden":false,"merged":[[8,3,8,17],[18,3,18,17],[46,3,46,17],[28,3,28,17],[30,3,30,17],[32,3,32,17],[34,3,34,17],[36,3,36,17],[38,3,38,17],[40,3,40,17],[42,3,42,17]]}
[]
[]
[]
[]
[]
[]
[]
[null,null,null,null,null,null,null,null,null,null,null,null,null,null,null,null,null,null,null,null,null,null,null,null,null,null,null,null,null,null,null,null,"Scrow Down Option",null,"Behaviour","Code Obtained","Points ","N/A"]
[null,null,null,"Our copier's/printer's sleep mode is set to activate after 5 minutes of inactivity.",null,null,null,null,null,null,null,null,null,null,null,null,null,null,null,null,null,null,null,null,null,null,null,null,null,null,null,null,null,null,1,{"$f":"IF(D10=0,\"\",IF((D11/D10)*100=100,3,IF((D11/D10)*100>=66,2,IF((D11/D10)*100>=1,1,0))))","v":""},{"$f":"AJ9","v":""},{"$f":"IF(D10=0,3,0)","v":3}]
[null,null,null,0,"Number of copiers and printers.",null,null,null,null,null,null,null,null,null,null,null,null,null,null,null,null,null,null,null,null,null,null,null,null,null,null,null,null,null,2,{"$f":"IF(D14=0,\"\",IF((D15/D14)*100=100,3,IF((D15/D14)*100>=66,2,IF((D15/D14)*100>=1,1,0))))","v":""},{"$f":"AJ10","v":""},{"$f":"IF(D14=0,3,0)","v":3}]
[null,null,null,0,"Number of copiers and printers in energy-saving mode.",null,null,null,null,null,null,null,null,null,null,null,null,null,null,null,null,null,null,null,null,null,null,null,null,null,null,null,"Yes",null,3,2,{"$f":"IF(AJ11=1,1,0)","v":0},{"$f":"IF(AJ11=3,1,0)","v":0}]
[null,null,null,null,null,null,null,null,null,null,null,null,null,null,null,null,null,null,null,null,null,null,null,null,null,null,null,null,null,null,null,null,"No",null,4,2,{"$f":"IF(AJ12=1,2,0)","v":0},{"$f":"IF(AJ12=3,2,0)","v":0}]
[null,null,null,"We make sure microwaves, coffee makers and other small appliances are unplugged at night or programmed to shut down on a timer. ",null,null,null,null,null,null,null,null,null,null,null,null,null,null,null,null,null,null,null,null,null,null,null,null,null,null,null,null,"N/A",null,5,2,{"$f":"IF(AJ13=1,3,0)","v":0},{"$f":"IF(AJ13=3,3,0)","v":0}]
[null,null,null,0,"Number of appliances.",null,null,null,null,null,null,null,null,null,null,null,null,null,null,null,null,null,null,null,null,null,null,null,null,null,null,null,null,null,"Totals",null,{"$f":"SUM(AK9:AK13)","v":0},{"$f":"SUM(AL9:AL13)","v":6}]
[null,null,null,0,"Number of appliances being unplugged/programmed.",null,null,null,null,null,null,null,null,null,null,null,null,null,null,null,null,null,null,null,null,null,null,null,null,null,null,null,null,null,null,null,null,{"$f":"12-AL14","v":6}]
[]
[]
[]
[]
[]
[null,null,null,null,null,"Our refrigerator's temperature is set at 4 degrees C and/or our freezer at -18 degrees C."]
[]
[null,null,null,null,null,"We post or commit to posting reminders to turn off lights."]
[]
[null,null,null,null,null,"We share printers."]
[]
[]
[]
[]
[null,null,null,null,null,null,null,null,null,"Total points earned",null,null,{"$f":"AK14","v":0}]
[]
[]
[]
[]
[]
[]
[]
[]
[]
[]
[]
[]
[]
[]
[]
[]
[]
[]
[]
[]
[]
[]
[]
[]
[]
[]
[]
[]
[]
[]
[]
[]
[]
[]
[]
[]
[]
[]
[]
[]
[]
[]
[]
[]
[]
[]
[]
[]
[]
[]
[]
[]
[]
[]
[]
[]
[]
[]
[]
[]
[]
[]
[]
[]
[]
[]
[]
[]
[]
[]
[]
[]
[]
[]
[]
[]
[]
[]
[]
[]
[]
[1]

{"sheet":"Waste","index":3,"n_rows":35,"n_cols":38,"rows_kept":35,"cut":false,"hidden":false,"merged":[[15,5,15,16],[17,5,17,16],[19,5,19,16],[21,5,21,16],[23,5,23,16],[65,3,65,17],[67,3,67,17],[33,3,33,17],[31,3,31,17],[25,5,25,16],[27,5,27,16],[29,5,29,16],[34,8,34,10],[69,3,69,17],[71,3,71,17],[13,5,13,16],[35,3,35,17],[73,3,73,17],[53,3,53,17],[55,3,55,17],[57,3,57,17],[59,3,59,17],[61,3,61,17],[43,3,43,17],[45,3,45,17],[47,3,47,17],[49,3,49,17],[51,3,51,17],[63,3,63,17]]}
[]
[]
[]
[]
[null,null,null,null,null,null,null,null,null,null,null,null,null,null,null,null,null,null,null,null,null,null,null,null,null,null,null,null,null,null,null,null,"Scrow Down Option",null,"Behaviour","Code","Yes","N/A"]
[null,null,null,null,null,null,null,null,null,null,null,null,null,null,null,null,null,null,null,null,null,null,null,null,null,null,null,null,null,null,null,null,"Yes",null,1,{"$f":"IF(D9=0,\"\",IF((D10/D9)*100=100,3,IF((D10/D9)*100>=66,2,IF((D10/D9)*100>=1,1,0))))","v":""},{"$f":"AJ6","v":""},{"$f":"IF(D9=0,3,0)","v":3}]
[null,null,null,null,null,null,null,null,null,null,null,null,null,null,null,null,null,null,null,null,null,null,null,null,null,null,null,null,null,null,null,null,"No",null,2,2,{"$f":"IF(AJ7=1,1,0)","v":0},{"$f":"IF(AJ7=3,1,0)","v":0}]
[null,null,null,"We have single-stream recycling bins in all common areas such as kitchen, break rooms, meeting rooms, etc.",null,null,null,null,null,null,null,null,null,null,null,null,null,null,null,null,null,null,null,null,null,null,null,null,null,null,null,null,"N/A",null,3,2,0,0]
[null,null,null,0,"Number of rooms/common areas.",null,null,null,null,null,null,null,null,null,null,null,null,null,null,null,null,null,null,null,null,null,null,null,null,null,null,null,null,null,4,2,0,0]
[null,null,null,0,"Number of rooms/common areas with a single-stream recycling bin.",null,null,null,null,null,null,null,null,null,null,null,null,null,null,null,null,null,null,null,null,null,null,null,null,null,null,null,null,null,5,2,{"$f":"IF(AJ10=1,2,0)","v":0},{"$f":"IF(AJ10=3,2,0)","v":0}]
[null,null,null,null,null,null,null,null,null,null,null,null,null,null,null,null,null,null,null,null,null,null,null,null,null,null,null,null,null,null,null,null,null,null,6,2,{"$f":"IF(AJ11=1,2,0)","v":0},{"$f":"IF(AJ11=3,2,0)","v":0}]
[null,null,null,null,null,null,null,null,null,null,null,null,null,null,null,null,null,null,null,null,null,null,null,null,null,null,null,null,null,null,null,null,null,null,7,2,{"$f":"IF(AJ12=1,2,0)","v":0},{"$f":"IF(AJ12=3,2,0)","v":0}]
[null,null,null,null,null,null,null,null,null,null,null,null,null,null,null,null,null,null,null,null,null,null,null,null,null,null,null,null,null,null,null,null,null,null,8,2,{"$f":"IF(AJ13=1,2,0)","v":0},{"$f":"IF(AJ13=3,2,0)","v":0}]
[null,null,null,null,null,"We reuse paper that has been used only on one side for different purposes such as scrap paper, printing, etc.",null,null,null,null,null,null,null,null,null,null,null,null,null,null,null,null,null,null,null,null,null,null,null,null,null,null,null,null,9,2,{"$f":"IF(AJ14=1,3,0)","v":0},{"$f":"IF(AJ14=3,3,0)","v":0}]
[null,null,null,null,null,null,null,null,null,null,null,null,null,null,null,null,null,null,null,null,null,null,null,null,null,null,null,null,null,null,null,null,null,null,10,2,{"$f":"IF(AJ15=1,3,0)","v":0},{"$f":"IF(AJ15=3,3,0)","v":0}]
[null,null,null,null,null,"We promote paperless meetings/presentations (avoid printing handouts, distribute files electronically in advance of meetings, use erasable boards, slides, etc.).",null,null,null,null,null,null,null,null,null,null,null,null,null,null,null,null,null,null,null,null,null,null,null,null,null,null,null,null,"Totals",null,{"$f":"SUM(AK6:AK15)","v":0},{"$f":"SUM(AL6:AL15)","v":3}]
[null,null,null,null,null,null,null,null,null,null,null,null,null,null,null,null,null,null,null,null,null,null,null,null,null,null,null,null,null,null,null,null,null,null,"Available",null,null,{"$f":"(20-AL16)","v":17}]
[null,null,null,null,null,"When we have to dispose of furniture and/or equipment we contact Facilities Management to see if it can be reused somewhere else."]
[]
[null,null,null,null,null,"We have reusable mugs, glasses, dishes, and silverware available in break rooms/our kitchen."]
[]
[null,null,null,null,null,"We have a designated area for sharing office supplies that can be reused (e.g., file folders, binders, pens, paper clips, etc.)."]
[]
[null,null,null,null,null,"We have transitioned as many as possible of our printed documents to digital formats (newsletters, forms, etc.)."]
[]
[null,null,null,null,null,"We recycle inkjet and laser printer cartridges."]
[]
[null,null,null,null,null,"In our kitchen, meeting rooms, or break rooms, we commit that our shared products (e.g., salt, sugar, cream, etc.) will be purchased in bulk in order to minimize packaging."]
[]
[null,null,null,null,null,"We do not provide disposable cups near water filtration units or water coolers or we post signs nearby to encourage use of refillable water bottles."]
[]
[]
[]
[]
[null,null,null,null,null,null,null,null,"Total points earned",null,null,{"$f":"AK16","v":0}]

{"sheet":"Outreach","index":4,"n_rows":22,"n_cols":38,"rows_kept":22,"cut":false,"hidden":false,"merged":[[8,5,8,17],[17,5,17,17],[29,3,29,17],[19,3,19,16],[21,9,21,11]]}
[]
[]
[]
[]
[null,null,null,null,null,null,null,null,null,null,null,null,null,null,null,null,null,null,null,null,null,null,null,null,null,null,null,null,null,null,null,null,"Option",null,"Behaviour/Question","Code","Yes","N/A"]
[null,null,null,null,null,null,null,null,null,null,null,null,null,null,null,null,null,null,null,null,null,null,null,null,null,null,null,null,null,null,null,null,"Yes",null,1,2,{"$f":"IF(AJ6=1,2,0)","v":0},{"$f":"IF(AJ6=3,2,0)","v":0}]
[null,null,null,"Prerequisite for Certification",null,null,null,null,null,null,null,null,null,null,null,null,null,null,null,null,null,null,null,null,null,null,null,null,null,null,null,null,"No",null,2,2,{"$f":"IF(AJ7=1,1,0)","v":0},{"$f":"IF(AJ7=3,1,0)","v":0}]
[null,null,null,null,null,null,null,null,null,null,null,null,null,null,null,null,null,null,null,null,null,null,null,null,null,null,null,null,null,null,null,null,"N/A",null,3,2,0,0]
[null,null,null,null,null,"We spend 5-10 minutes in staff meetings discussing our Work Green progress and/or other sustainability-related activities.",null,null,null,null,null,null,null,null,null,null,null,null,null,null,null,null,null,null,null,null,null,null,null,null,null,null,null,null,4,2,{"$f":"IF(AJ9=1,3,0)","v":0},{"$f":"IF(AJ9=3,3,0)","v":0}]
[null,null,null,null,null,null,null,null,null,null,null,null,null,null,null,null,null,null,null,null,null,null,null,null,null,null,null,null,null,null,null,null,null,null,5,2,{"$f":"IF(AJ10=1,3,0)","v":0},{"$f":"IF(AJ10=3,3,0)","v":0}]
[null,null,null,null,null,null,null,null,null,null,null,null,null,null,null,null,null,null,null,null,null,null,null,null,null,null,null,null,null,null,null,null,null,null,"Totals",null,{"$f":"SUM(AK6:AK10)","v":0},{"$f":"SUM(AL6:AL10)","v":0}]
[null,null,null,null,null,"Everybody in our workplace knows who our Work Green \"champion\" is and her/his role.",null,null,null,null,null,null,null,null,null,null,null,null,null,null,null,null,null,null,null,null,null,null,null,null,null,null,null,null,"Available",null,null,{"$f":"(10-AL11)","v":10}]
[]
[null,null,null,null,null,"We receive the Work Green tip of the month and distribute/display it in the workplace."]
[]
[null,null,null,null,null,"Our office participates in the Work Green monthly activities."]
[]
[null,null,null,null,null,"We highlight our Work Green participation on our department/office website and in other promotional materials such as our newsletter, etc."]
[]
[]
[]
[null,null,null,null,null,null,null,null,null,"Total points earned",null,null,{"$f":"AK11","v":0}]

{"sheet":"Purchasing","index":5,"n_rows":29,"n_cols":39,"rows_kept":29,"cut":false,"hidden":false,"merged":[[5,31,6,31],[5,33,6,33],[5,34,6,34],[5,35,6,35],[11,5,11,17],[19,3,19,17],[27,3,27,17],[31,3,31,17],[17,3,17,17],[20,7,20,8],[20,11,20,12],[20,15,20,16],[16,35,17,35],[16,32,17,32],[8,37,8,38],[12,34,15,34],[12,31,15,31],[12,32,15,33],[16,33,17,33],[16,34,17,34],[16,31,17,31]]}
[]
[]
[]
[null,null,null,null,null,null,null,null,null,null,null,null,null,null,null,null,null,null,null,null,null,null,null,null,null,null,null,null,null,null,null,"Table a)"]
[null,null,null,null,null,null,null,null,null,null,null,null,null,null,null,null,null,null,null,null,null,null,null,null,null,null,null,null,null,null,null,"Behaviour","Option","Code","Yes","N/A"]
[null,null,null,null,null,null,null,null,null,null,null,null,null,null,null,null,null,null,null,null,null,null,null,null,null,null,null,null,null,null,null,1,"Yes",2,{"$f":"IF(AH6=1,1,0)","v":0},{"$f":"IF(AH6=3,1,0)","v":0}]
[null,null,null,null,null,null,null,null,null,null,null,null,null,null,null,null,null,null,null,null,null,null,null,null,null,null,null,null,null,null,null,null,"No"]
[null,null,null,null,null,"We have committed to stop buying items made of or packaged in styrofoam.",null,null,null,null,null,null,null,null,null,null,null,null,null,null,null,null,null,null,null,null,null,null,null,null,null,2,"N/A",2,{"$f":"IF(AH8=1,3,0)","v":0},{"$f":"IF(AH8=3,3,0)","v":0},null,"Table b)"]
[null,null,null,null,null,null,null,null,null,null,null,null,null,null,null,null,null,null,null,null,null,null,null,null,null,null,null,null,null,null,null,3,null,2,{"$f":"IF(AH9=1,3,0)","v":0},{"$f":"IF(AH9=3,3,0)","v":0},null,"Paper Certification Code"]
[null,null,null,null,null,"We have fair trade coffee/tea available in our break room/kitchen.",null,null,null,null,null,null,null,null,null,null,null,null,null,null,null,null,null,null,null,null,null,null,null,null,null,4,null,2,{"$f":"IF(AH10=1,3,0)","v":0},{"$f":"IF(AH10=3,3,0)","v":0},null,false,{"$f":"IF(AL10=TRUE,1,0)","v":0}]
[null,null,null,null,null,null,null,null,null,null,null,null,null,null,null,null,null,null,null,null,null,null,null,null,null,null,null,null,null,null,null,"Members",null,{"$f":"E23","v":0},null,null,null,false,{"$f":"IF(AL11=TRUE,1,0)","v":0}]
[null,null,null,null,null,"We purchase environmentally preferred products (EPP) office supplies (e.g., staplers, tape, drawer organizers, binders, etc.) when they are available.",null,null,null,null,null,null,null,null,null,null,null,null,null,null,null,null,null,null,null,null,null,null,null,null,null,"PACKAGES (Table C)","<10",1,null,null,null,false,{"$f":"IF(AL12=TRUE,1,0)","v":0}]
[null,null,null,null,null,null,null,null,null,null,null,null,null,null,null,null,null,null,null,null,null,null,null,null,null,null,null,null,null,null,null,"Paper Certification Code (From table b)","See Paper Certification Code",null,{"$f":"AM15","v":0},null,null,false,{"$f":"IF(AL13=TRUE,1,0)","v":0}]
[null,null,null,null,null,"When we purchase computers we purchase EPEAT models whenever possible.",null,null,null,null,null,null,null,null,null,null,null,null,null,null,null,null,null,null,null,null,null,null,null,null,null,null,null,null,null,null,null,null,{"$f":"SUM(AM10:AM13)","v":0}]
[null,null,null,null,null,null,null,null,null,null,null,null,null,null,null,null,null,null,null,null,null,null,null,null,null,null,null,null,null,null,null,null,null,null,null,null,null,null,{"$f":"IF((AM14)=0,0,1)","v":0}]
[]
[null,null,null,null,null,null,null,null,null,null,null,null,null,null,null,null,null,null,null,null,null,null,null,null,null,null,null,null,null,null,null,"Recycled Content",null,1,{"$f":"IF((AH17)=1,0, IF((AH17)=2,2,3))","v":0},null,null,"Table c)"]
[null,null,null,null,null,null,null,null,null,null,null,null,null,null,null,null,null,null,null,null,null,null,null,null,null,null,null,null,null,null,null,null,null,null,null,null,null,"Amount of Paper Purchased Code (Scrow Down)"]
[null,null,null,null,null,null,null,null,null,null,null,null,null,null,null,null,null,null,null,null,null,null,null,null,null,null,null,null,null,null,null,"N/A",null,false,null,{"$f":"IF(AH19=TRUE,4,0)","v":0},null,"<10"]
[null,null,null,null,null,null,null,null,null,null,null,null,null,null,null,null,null,null,null,null,null,null,null,null,null,null,null,null,null,null,null,"Totals",null,null,{"$f":"SUM(AI6:AI19)","v":0},{"$f":"SUM(AJ6:AJ19)","v":0},null,"10 to 25"]
[null,null,null,null,"Number of Office Members",null,null,"Packages                    (500 sheets/pckg) bought per year.",null,null,null,"Certification ",null,null,null,"Recycled                           Content",null,null,null,null,null,null,null,null,null,null,null,null,null,null,null,"Available",null,null,null,{"$f":"16-AJ20","v":16},null,"25 to 50"]
[null,null,null,null,{"$f":"Information!G21","v":0},null,null,null,null,null,null,null,null,null,null,null,null,null,null,null,null,null,null,null,null,null,null,null,null,null,null,null,null,null,null,null,null,">50"]
[]
[]
[null,null,null,null,null,null,null,null,null,null,null,null,null,null,null,null,null,null,null,null,null,null,null,null,null,null,null,null,null,null,null,null,null,null,null,null,null,"Table d)"]
[null,null,null,null,null,null,null,null,null,null,null,null,null,null,null,null,null,null,null,null,null,null,null,null,null,null,null,null,null,null,null,null,null,null,null,null,null,"N/A"]
[null,null,null,null,null,null,null,null,null,null,null,null,null,null,null,null,null,null,null,null,null,null,null,null,null,null,null,null,null,null,null,null,null,null,null,null,null,0.5]
[null,null,null,null,null,null,null,null,null,null,null,null,null,null,null,null,null,null,null,null,null,null,null,null,null,null,null,null,null,null,null,null,null,null,null,null,null,1]
[null,null,null,null,null,null,null,null,"Total points earned",null,null,{"$f":"AI20","v":0}]

{"sheet":"Water","index":6,"n_rows":16,"n_cols":40,"rows_kept":16,"cut":false,"hidden":false,"merged":[[19,17,19,18],[19,1,19,14]]}
[]
[]
[]
[null,null,null,null,null,null,null,null,null,null,null,null,null,null,null,null,null,null,null,null,null,null,null,null,null,null,null,null,null,null,null,null,null,null,"Option",null,"Question","Code","Yes","N/A"]
[null,null,null,null,null,null,null,null,null,null,null,null,null,null,null,null,null,null,null,null,null,null,null,null,null,null,null,null,null,null,null,null,null,null,"Yes",null,1,3,{"$f":"IF(AL5=1,1,0)","v":0},{"$f":"IF(AL5=3,1,0)","v":1}]
[null,null,null,null,null,null,null,null,null,null,null,null,null,null,null,null,null,null,null,null,null,null,null,null,null,null,null,null,null,null,null,null,null,null,"No",null,2,3,{"$f":"IF(AL6=1,3,0)","v":0},{"$f":"IF(AL6=3,3,0)","v":3}]
[null,null,null,null,null,null,null,null,null,null,null,null,null,null,null,null,null,null,null,null,null,null,null,null,null,null,null,null,null,null,null,null,null,null,"N/A",null,3,3,{"$f":"IF(AL7=1,3,0)","v":0},{"$f":"IF(AL7=3,3,0)","v":3}]
[null,null,null,null,null,"We commit to report to Work Control any leaky faucets or toilets that flush for an excessively long time.",null,null,null,null,null,null,null,null,null,null,null,null,null,null,null,null,null,null,null,null,null,null,null,null,null,null,null,null,null,null,"Totals",null,{"$f":"SUM(AM5:AM7)","v":0},{"$f":"SUM(AN5:AN7)","v":7}]
[null,null,null,null,null,null,null,null,null,null,null,null,null,null,null,null,null,null,null,null,null,null,null,null,null,null,null,null,null,null,null,null,null,null,null,null,"Available",null,null,{"$f":"(7-AN8)","v":0}]
[null,null,null,null,null,"We use environmentally friendly dishwashing soap."]
[]
[null,null,null,null,null,"We have reminders to practice water conservation (e.g. turning off the faucet while soaping hands or washing dishes)."]
[]
[]
[]
[null,null,null,null,null,null,null,null,null,"Total points earned",null,null,{"$f":"AM8","v":0}]

{"sheet":"Transportation","index":7,"n_rows":14,"n_cols":38,"rows_kept":14,"cut":false,"hidden":false,"merged":[[26,3,26,17],[20,3,20,17],[22,3,22,17],[24,3,24,17],[10,3,10,17],[12,3,12,17],[14,3,14,17],[16,3,16,17],[18,3,18,17]]}
[]
[]
[]
[]
[null,null,null,null,null,null,null,null,null,null,null,null,null,null,null,null,null,null,null,null,null,null,null,null,null,null,null,null,null,null,null,null,"Scrow Down ",null,"Question/Behaviour","Code","Yes","N/A"]
[null,null,null,null,null,null,null,null,null,null,null,null,null,null,null,null,null,null,null,null,null,null,null,null,null,null,null,null,null,null,null,null,"Yes",null,1,2,{"$f":"IF(AJ6=1,2,0)","v":0},{"$f":"IF(AJ6=3,2,0)","v":0}]
[null,null,null,null,null,null,null,null,null,null,null,null,null,null,null,null,null,null,null,null,null,null,null,null,null,null,null,null,null,null,null,null,"No"]
[null,null,null,null,null,null,null,null,null,null,null,null,null,null,null,null,null,null,null,null,null,null,null,null,null,null,null,null,null,null,null,null,"N/A"]
[null,null,null,null,null,"When attending meetings off campus, we commit to carpool, bus, cycle, walk, etc. whenever feasible.",null,null,null,null,null,null,null,null,null,null,null,null,null,null,null,null,null,null,null,null,null,null,null,null,null,null,null,null,"Totals",null,{"$f":"SUM(AK6:AK8)","v":0},{"$f":"SUM(AL6:AL8)","v":0}]
[null,null,null,null,null,null,null,null,null,null,null,null,null,null,null,null,null,null,null,null,null,null,null,null,null,null,null,null,null,null,null,null,null,null,"Available",null,null,{"$f":"(2-AL9)","v":2}]
[]
[]
[]
[null,null,null,null,null,null,null,null,null,"Total points earned",null,null,{"$f":"AK9","v":0}]

{"sheet":"Innovation","index":8,"n_rows":112,"n_cols":58,"rows_kept":112,"cut":false,"hidden":false,"merged":[[9,5,9,17],[11,5,11,17],[7,5,7,17]]}
[]
[]
[]
[]
[null,null,null,null,null,null,null,null,null,null,null,null,null,null,null,null,null,null,null,null,null,null,null,null,null,null,null,null,null,null,null,null,"Option",null,"Question","Code","Yes","N/A"]
[null,null,null,null,null,null,null,null,null,null,null,null,null,null,null,null,null,null,null,null,null,null,null,null,null,null,null,null,null,null,null,null,"Yes",null,null,2,{"$f":"IF(AJ6=1,3,0)","v":0},{"$f":"IF(AJ6=2,3,0)","v":3}]
[null,null,null,null,null,null,null,null,null,null,null,null,null,null,null,null,null,null,null,null,null,null,null,null,null,null,null,null,null,null,null,null,"N/A",null,null,2,{"$f":"IF(AJ7=1,3,0)","v":0},{"$f":"IF(AJ7=2,3,0)","v":3}]
[null,null,null,null,null,"Describe your sustainability practice here.",null,null,null,null,null,null,null,null,null,null,null,null,null,null,null,null,null,null,null,null,null,null,null,null,null,null,null,null,null,2,0,3]
[null,null,null,null,null,null,null,null,null,null,null,null,null,null,null,null,null,null,null,null,null,null,null,null,null,null,null,null,null,null,null,null,null,null,"Totals",null,{"$f":"SUM(AK6:AK8)","v":0},{"$f":"SUM(AL6:AL8)","v":9}]
[null,null,null,null,null,"Describe your sustainability practice here.",null,null,null,null,null,null,null,null,null,null,null,null,null,null,null,null,null,null,null,null,null,null,null,null,null,null,null,null,"Available",null,null,{"$f":"(9-AL9)","v":0}]
[]
[null,null,null,null,null,"Describe your sustainability practice here."]
[]
[]
[]
[]
[null,null,null,null,null,null,null,null,null,"Total points earned",null,null,{"$f":"AK9","v":0}]
[]
[]
[]
[]
[]
[]
[]
[]
[]
[]
[]
[]
[]
[]
[]
[]
[]
[]
[]
[]
[]
[]
[]
[]
[]
[]
[]
[]
[]
[]
[]
[]
[]
[]
[]
[]
[]
[]
[]
[]
[]
[]
[]
[]
[]
[]
[]
[]
[]
[]
[]
[]
[]
[]
[]
[]
[]
[]
[]
[]
[]
[]
[]
[]
[]
[]
[]
[]
[]
[]
[]
[]
[]
[]
[]
[]
[]
[]
[]
[]
[]
[]
[]
[]
[]
[]
[]
[]
[]
[]
[]
[]
[]
[]
[null,null,null,null,null,null,null,null,null,null,null,null,null,null,null,null,null,null,null,null,null,null,null,null,null,null,null,null,null,null,null,null,null,null,null,null,null,null,null,null,null,null,null,null,null,null,null,null,null,null,null,null,null,null,null,null,null,1]